bitfinex-derivatives/quotes_ETHF0:USTF0_20230105
["timestamp","ask_amount","ask_price","bid_price","bid_amount"]
[1672895237503,6.68390257,1253.7,1253.5,6.20018981]
[1672895238239,6.68390257,1253.7,1253.5,4.40444257]
[1672895238660,6.68390257,1253.7,1253.5,6.20018981]
[1672895240235,6.68390257,1253.7,1253.5,4.40444257]
[1672895242018,9.89170257,1253.7,1253.5,4.40444257]
[1672895242652,6.68390257,1253.7,1253.5,1.19664257]
[1672895243073,6.68390257,1253.7,1253.5,2.99238981]
[1672895243390,6.68390257,1253.7,1253.5,1.19664257]
[1672895246858,6.68390257,1253.7,1253.5,4.40444257]
[1672895247598,6.68390257,1253.7,1253.5,6.20018981]
[1672895248649,6.68390257,1253.7,1253.5,4.40444257]
[1672895249806,6.68390257,1253.7,1253.5,1.19664257]
[1672895260326,11.46708402,1253.7,1253.5,1.19664257]
[1672895262640,6.68390257,1253.7,1253.5,1.19664257]
[1672895263901,11.46708402,1253.7,1253.5,1.19664257]
[1672895265159,4.18390257,1253.6,1253.5,1.19664257]
[1672895266419,14.67488402,1253.7,1253.5,1.19664257]
[1672895267572,11.46708402,1253.7,1253.5,1.19664257]
[1672895267999,11.46708402,1253.7,1253.5,1.19312823]
[1672895268721,6.68390257,1253.7,1253.5,1.19312823]
[1672895268932,6.68390257,1253.7,1253.5,3.69312823]
[1672895269147,3.58642841,1253.6,1253.5,5.48887547]
[1672895269565,3.58642841,1253.6,1253.5,2.98887547]
[1672895270300,3.58642841,1253.6,1253.5,1.19312823]
[1672895271043,3.58642841,1253.6,1253.5,3.69312823]
[1672895272194,3.58642841,1253.6,1253.5,6.90092823]
[1672895273249,3.58642841,1253.6,1253.5,6.19667547]
[1672895274615,3.58642841,1253.6,1253.5,2.98887547]
[1672895274823,3.58642841,1253.6,1253.5,6.19667547]
[1672895275134,3.58642841,1253.6,1253.5,2.98887547]
[1672895275452,3.58642841,1253.6,1253.5,4.40092823]
[1672895276088,3.58642841,1253.6,1253.5,6.19667547]
[1672895277871,3.58642841,1253.6,1253.5,4.40092823]
[1672895278921,3.58642841,1253.6,1253.5,1.19312823]
[1672895281238,3.58642841,1253.6,1253.5,2.98887547]
[1672895281445,7.77033098,1253.7,1253.5,1.79574724]
[1672895282183,7.77033098,1253.7,1253.5,7.50354724]
[1672895285969,3.58642841,1253.7,1253.5,7.50354724]
[1672895286171,6.08642841,1253.7,1253.5,7.50354724]
[1672895286390,10.27033098,1253.7,1253.5,7.50354724]
[1672895289638,3.58642841,1253.6,1253.5,7.50354724]
[1672895289849,2.5,1253.6,1253.5,7.50354724]
[1672895290271,10.27033098,1253.7,1253.5,7.50354724]
[1672895290483,2.5,1253.6,1253.5,7.50354724]
[1672895291118,10.27033098,1253.7,1253.5,7.50354724]
[1672895291958,10.27033098,1253.7,1253.5,4.29574724]
[1672895292168,10.27033098,1253.7,1253.5,7.50354724]
[1672895292688,10.27033098,1253.7,1253.5,5.00354724]
[1672895292909,2.5,1253.6,1253.5,5.00354724]
[1672895293108,2.5,1253.6,1253.5,3.2078]
[1672895293317,3.58642841,1253.6,1253.5,3.2078]
[1672895293528,6.08642841,1253.6,1253.5,3.2078]
[1672895294055,6.08642841,1253.6,1253.4,6.68655241]
[1672895294374,3.58642841,1253.7,1253.5,5.00354724]
[1672895294585,10.27033098,1253.8,1253.6,4.29574724]
[1672895294793,2.5,1253.7,1253.6,2.5]
[1672895295112,6.08642841,1253.7,1253.6,2.5]
[1672895296372,10.27033098,1253.8,1253.6,4.29574724]
[1672895298264,2.5,1253.7,1253.6,2.5]
[1672895300901,10.27033098,1253.8,1253.5,6.50354724]
[1672895301211,10.27033098,1253.8,1253.6,2.5]
[1672895302056,6.08642841,1253.8,1253.6,2.5]
[1672895302693,3.58642841,1253.8,1253.6,2.5]
[1672895302886,3.58642841,1253.9,1253.7,5.00354724]
[1672895303312,3.58642841,1253.9,1253.8,2.5]
[1672895304053,6.08642841,1254.0,1253.8,2.5]
[1672895305413,2.5,1253.9,1253.8,2.5]
[1672895305624,6.08642841,1253.9,1253.8,2.5]
[1672895309311,6.08642841,1253.9,1253.7,3.2078]
[1672895310363,6.08642841,1253.9,1253.8,2.5]
[1672895311203,3.58642841,1253.9,1253.8,2.5]
[1672895313094,6.08642841,1254.0,1253.8,2.5]
[1672895313300,3.58642841,1254.0,1253.9,3.2078]
[1672895313515,10.97813098,1254.1,1253.9,3.2078]
[1672895314034,6.08642841,1254.1,1253.9,3.2078]
[1672895314667,10.27033098,1254.1,1253.9,3.2078]
[1672895314882,6.08642841,1254.1,1253.9,3.2078]
[1672895315409,10.27033098,1254.1,1253.9,3.2078]
[1672895315617,6.08642841,1254.1,1253.9,3.2078]
[1672895318352,2.5,1254.0,1253.8,5.7078]
[1672895328239,3.58642841,1254.1,1253.8,13.6808]
[1672895328441,13.47813098,1254.2,1253.8,13.6808]
[1672895328657,6.08642841,1254.2,1254.0,3.2078]
[1672895328970,6.08642841,1254.2,1254.1,2.5]
[1672895330337,3.58642841,1254.2,1254.1,2.5]
[1672895330546,10.27033098,1254.3,1254.1,2.5]
[1672895330762,6.08642841,1254.3,1254.1,2.5]
[1672895332747,6.08642841,1254.3,1254.0,5.7078]
[1672895332962,2.5,1254.2,1254.0,5.7078]
[1672895333278,6.08642841,1254.2,1253.8,13.6808]
[1672895333901,6.08642841,1254.2,1253.8,5.7078]
[1672895334222,13.47813098,1254.2,1253.8,5.7078]
[1672895334439,3.58642841,1254.1,1253.8,5.7078]
[1672895334753,2.5,1254.0,1253.8,5.7078]
[1672895341583,2.5,1254.0,1253.8,2.5]
[1672895341902,2.5,1254.0,1253.8,5.7078]
[1672895342097,2.5,1254.0,1253.8,7.50354724]
[1672895342423,2.5,1254.0,1253.8,7.49914253]
[1672895345051,2.5,1254.0,1253.8,4.29134253]
[1672895345257,2.5,1254.0,1253.8,7.49914253]
[1672895345469,2.5,1254.0,1253.8,4.29134253]
[1672895345676,2.5,1254.0,1253.8,7.49914253]
[1672895346308,2.5,1254.0,1253.8,4.29134253]
[1672895346628,2.5,1254.0,1253.8,7.49914253]
[1672895348937,2.5,1254.0,1253.8,4.29134253]
[1672895349141,2.5,1254.0,1253.9,3.2078]
[1672895349353,3.58642841,1254.1,1253.9,3.2078]
[1672895350622,3.58642841,1254.1,1253.8,4.29134253]
[1672895350936,3.58642841,1254.1,1253.9,3.2078]
[1672895351254,3.58642841,1254.1,1254.0,2.5]
[1672895354191,6.08642841,1254.1,1254.0,2.5]
[1672895354506,6.08642841,1254.1,1253.9,3.2078]
[1672895355246,3.58642841,1254.1,1254.0,2.5]
[1672895356508,6.08642841,1254.1,1254.0,2.5]
[1672895357979,6.08642841,1254.1,1253.8,12.26434253]
[1672895358291,6.08642841,1254.1,1254.0,2.5]
[1672895360084,6.08642841,1254.1,1253.9,3.2078]
[1672895360715,6.08642841,1254.1,1253.8,12.26434253]
[1672895361024,6.08642841,1254.1,1254.0,2.5]
[1672895362285,6.08642841,1254.1,1253.9,3.2078]
[1672895362497,6.08642841,1254.1,1254.0,2.5]
[1672895362813,10.27033098,1254.1,1254.0,2.5]
[1672895363022,10.27033098,1254.1,1253.9,3.2078]
[1672895363235,2.0,1254.0,1253.9,3.2078]
[1672895365545,1.99763201,1254.0,1253.9,3.2078]
[1672895365757,5.58154595,1254.0,1253.9,3.2078]
[1672895366486,5.58154595,1254.0,1253.8,4.29134253]
[1672895366701,1.99763201,1254.0,1253.9,3.2078]
[1672895368592,1.99763201,1254.0,1253.8,6.6821477]
[1672895369015,1.99763201,1254.0,1253.9,3.2078]
[1672895370899,5.58154595,1254.0,1253.9,3.2078]
[1672895371112,1.99763201,1254.0,1253.9,3.2078]
[1672895371956,1.99763201,1254.0,1253.9,5.00354724]
[1672895372271,5.58154595,1254.0,1253.9,5.00354724]
[1672895372693,5.58154595,1254.0,1253.9,1.79574724]
[1672895372898,5.58154595,1254.0,1253.9,5.00354724]
[1672895373424,3.58391394,1254.0,1253.9,5.00354724]
[1672895373631,6.08391394,1254.1,1253.9,5.00354724]
[1672895374371,2.0,1254.0,1253.9,5.00354724]
[1672895375419,2.0,1254.0,1253.9,1.79574724]
[1672895375643,2.0,1254.0,1253.9,5.00354724]
[1672895376147,6.08391394,1254.1,1253.9,5.00354724]
[1672895376581,2.0,1254.0,1253.9,5.00354724]
[1672895379951,2.0,1254.0,1253.9,3.2078]
[1672895380163,5.58391394,1254.0,1253.9,3.2078]
[1672895381947,5.58391394,1254.0,1253.7,7.39435241]
[1672895382154,3.58391394,1253.9,1253.7,5.00354724]
[1672895383001,2.5,1253.8,1253.7,5.00354724]
[1672895385418,2.5,1253.8,1253.7,3.2078]
[1672895387938,2.5,1253.8,1253.7,4.40260297]
[1672895389418,2.5,1253.8,1253.7,3.2078]
[1672895390671,2.5,1253.8,1253.7,4.40260297]
[1672895392049,2.5,1253.8,1253.7,1.19480297]
[1672895392885,2.5,1253.8,1253.6,6.19835021]
[1672895393941,2.5,1253.8,1253.6,2.99055021]
[1672895394255,2.5,1253.8,1253.6,6.19835021]
[1672895394469,2.5,1253.8,1253.7,1.19480297]
[1672895394670,2.5,1253.8,1253.7,3.69480297]
[1672895396249,2.5,1253.8,1253.7,6.90260297]
[1672895396460,12.97561651,1254.0,1253.7,6.90260297]
[1672895396664,9.76781651,1254.0,1253.7,3.69480297]
[1672895396880,12.97561651,1254.0,1253.7,6.90260297]
[1672895397711,9.76781651,1254.0,1253.7,6.90260297]
[1672895397925,12.97561651,1254.0,1253.7,4.40260297]
[1672895398873,9.76781651,1254.0,1253.7,1.19480297]
[1672895399085,12.97561651,1254.0,1253.7,4.40260297]
[1672895399719,12.97561651,1254.0,1253.7,3.2078]
[1672895400137,12.97561651,1254.0,1253.7,4.40260297]
[1672895403505,9.76781651,1254.0,1253.7,1.19480297]
[1672895403717,5.58391394,1254.0,1253.7,4.40260297]
[1672895403920,9.76781651,1254.0,1253.7,4.40260297]
[1672895404341,5.58391394,1254.0,1253.7,4.40260297]
[1672895405491,3.58391394,1254.0,1253.7,4.40260297]
[1672895405698,10.26781651,1254.1,1253.8,3.69480297]
[1672895405913,6.08391394,1254.1,1253.9,2.5]
[1672895406545,2.5,1254.0,1253.9,2.5]
[1672895407811,2.5,1254.0,1253.8,3.69480297]
[1672895408547,6.08391394,1254.0,1253.8,2.5]
[1672895408757,2.5,1254.0,1253.8,3.69480297]
[1672895410220,6.08391394,1254.0,1253.8,3.69480297]
[1672895410432,6.08391394,1254.0,1253.7,6.19835021]
[1672895413383,6.08391394,1254.0,1253.8,1.19480297]
[1672895413589,6.08391394,1254.0,1253.9,2.5]
[1672895414012,6.08391394,1254.0,1253.8,3.69480297]
[1672895414433,6.08391394,1254.0,1253.8,2.5]
[1672895414853,6.08391394,1254.0,1253.7,6.19835021]
[1672895415065,6.08391394,1254.0,1253.7,2.99055021]
[1672895415275,6.08391394,1254.0,1253.8,1.19480297]
[1672895415795,6.08391394,1254.0,1253.8,3.69480297]
[1672895416851,6.08391394,1254.0,1253.8,1.19480297]
[1672895417166,6.08391394,1254.0,1253.8,3.69480297]
[1672895418222,6.08391394,1254.0,1253.8,1.19480297]
[1672895419580,10.26781651,1254.0,1253.8,1.19480297]
[1672895421894,3.58391394,1253.9,1253.8,1.19480297]
[1672895422630,10.26781651,1254.0,1253.8,1.19480297]
[1672895426217,6.08391394,1254.0,1253.8,1.19480297]
[1672895428531,6.08391394,1254.0,1253.8,2.99055021]
[1672895429362,6.08391394,1254.0,1253.9,1.19480297]
[1672895429580,6.08391394,1254.0,1253.9,2.5]
[1672895429791,6.08391394,1254.0,1253.9,3.69480297]
[1672895430420,6.08391394,1254.0,1253.9,1.19480297]
[1672895431363,2.5,1254.0,1253.9,1.19480297]
[1672895431573,10.26781651,1254.1,1253.9,1.19480297]
[1672895432104,6.08391394,1254.1,1253.9,1.19480297]
[1672895432415,6.08391394,1254.1,1254.0,3.2078]
[1672895433360,10.26781651,1254.1,1254.0,3.2078]
[1672895433684,10.26781651,1254.1,1253.9,3.69480297]
[1672895433884,2.5,1254.0,1253.8,8.69835021]
[1672895434092,6.08391394,1254.0,1253.9,1.19480297]
[1672895434309,6.08391394,1254.0,1253.9,3.69480297]
[1672895435895,2.5,1254.0,1253.9,4.40260297]
[1672895436840,2.5,1254.0,1253.9,1.19480297]
[1672895437052,6.08391394,1254.0,1253.9,4.40260297]
[1672895437576,2.5,1254.0,1253.9,4.40260297]
[1672895438101,2.5,1254.0,1253.9,1.19480297]
[1672895438305,6.08391394,1254.0,1253.9,4.40260297]
[1672895438624,2.5,1254.0,1253.9,4.40260297]
[1672895439249,6.08391394,1254.0,1253.9,4.40260297]
[1672895440099,2.5,1254.0,1253.9,4.40260297]
[1672895440626,6.08391394,1254.0,1253.9,4.40260297]
[1672895441464,6.08391394,1254.0,1253.9,1.19480297]
[1672895441674,6.08391394,1254.0,1253.9,4.40260297]
[1672895442511,3.58391394,1254.0,1253.9,4.40260297]
[1672895442720,6.08391394,1254.2,1253.9,7.39435241]
[1672895442928,6.08391394,1254.2,1254.0,4.4909315]
[1672895443141,6.08391394,1254.2,1254.1,2.5]
[1672895445028,3.58391394,1254.2,1254.1,2.5]
[1672895445444,6.08391394,1254.2,1254.0,2.69518426]
[1672895446826,2.5,1254.2,1254.0,2.69518426]
[1672895447776,2.5,1254.2,1254.0,5.90298426]
[1672895448403,2.5,1254.2,1254.0,2.69518426]
[1672895448608,2.5,1254.2,1254.0,5.90298426]
[1672895449032,6.08391394,1254.2,1254.0,5.90298426]
[1672895449455,2.5,1254.2,1254.0,5.90298426]
[1672895449980,6.08391394,1254.2,1254.0,5.90298426]
[1672895450404,6.08391394,1254.2,1254.0,2.69518426]
[1672895450713,6.08391394,1254.2,1254.0,5.90298426]
[1672895450924,6.08391394,1254.2,1254.0,2.69518426]
[1672895451135,6.08391394,1254.2,1254.1,3.2078]
[1672895453449,0.00642202,1254.1,1254.0,1.5]
[1672895456811,0.00642202,1254.1,1254.0,4.7078]
[1672895459645,0.00642202,1254.1,1254.0,5.90298426]
[1672895460279,0.00642202,1254.1,1254.0,4.7078]
[1672895463327,0.00642202,1254.1,1254.0,5.90298426]
[1672895463530,0.00642202,1254.1,1254.0,4.7078]
[1672895463741,2.50642202,1254.1,1254.0,4.70380799]
[1672895464160,0.00642202,1254.1,1254.0,4.70380799]
[1672895464797,0.00642202,1254.1,1254.0,1.49600799]
[1672895465017,2.50642202,1254.1,1254.0,4.70380799]
[1672895465215,0.00642202,1254.1,1254.0,4.70380799]
[1672895465850,0.00642202,1254.1,1254.0,1.49600799]
[1672895466059,0.00642202,1254.1,1254.0,4.70380799]
[1672895467217,0.00642202,1254.1,1254.0,5.89899225]
[1672895469211,0.00642202,1254.1,1254.0,4.70380799]
[1672895469631,0.00642202,1254.1,1254.0,5.89899225]
[1672895470787,0.00642202,1254.1,1254.0,2.69119225]
[1672895470998,0.00642202,1254.1,1254.0,5.89899225]
[1672895471629,0.00642202,1254.1,1254.0,2.69119225]
[1672895471939,0.00642202,1254.1,1254.0,5.89899225]
[1672895473621,0.00642202,1254.1,1254.0,2.69119225]
[1672895474045,0.00642202,1254.1,1254.0,5.89899225]
[1672895474885,0.00642202,1254.1,1254.0,2.69119225]
[1672895475089,0.00642202,1254.1,1254.0,5.89899225]
[1672895475409,0.00642202,1254.1,1254.0,2.69119225]
[1672895475620,0.00642202,1254.1,1254.0,5.89899225]
[1672895476462,0.00642202,1254.1,1254.0,2.69119225]
[1672895476777,0.00642202,1254.1,1254.0,5.89899225]
[1672895477304,3.59033596,1254.1,1254.0,2.69119225]
[1672895477514,3.59033596,1254.1,1254.0,4.40298426]
[1672895478667,0.00642202,1254.1,1254.0,4.40298426]
[1672895479081,3.59033596,1254.1,1254.0,4.40298426]
[1672895479292,0.00642202,1254.1,1254.0,4.40298426]
[1672895479708,0.00642202,1254.1,1254.0,1.19518426]
[1672895480034,0.00642202,1254.1,1254.0,6.1987315]
[1672895481298,0.00642202,1254.1,1254.0,5.00354724]
[1672895481616,0.00642202,1254.1,1254.0,6.19940995]
[1672895481921,0.00642202,1254.1,1254.0,5.00354724]
[1672895484754,0.00642202,1254.1,1254.0,6.19934867]
[1672895487600,3.59033596,1254.1,1254.0,6.19934867]
[1672895487808,3.59033596,1254.1,1254.0,2.99154867]
[1672895488015,3.59033596,1254.1,1254.0,6.19934867]
[1672895489914,3.59033596,1254.1,1254.0,2.99154867]
[1672895490123,3.59033596,1254.1,1254.0,6.19934867]
[1672895490751,3.58595729,1254.1,1254.0,2.99154867]
[1672895490962,3.58595729,1254.1,1254.0,6.19934867]
[1672895491805,3.58595729,1254.1,1254.0,2.99154867]
[1672895492019,3.58595729,1254.1,1254.0,6.19934867]
[1672895492860,0.00204335,1254.1,1254.0,6.19934867]
[1672895493170,0.00204335,1254.1,1254.0,8.69934867]
[1672895493699,0.00204335,1254.1,1254.0,5.49154867]
[1672895494113,0.00204335,1254.1,1254.0,8.69934867]
[1672895494962,3.58595729,1254.1,1254.0,8.69934867]
[1672895495167,0.00204335,1254.1,1254.0,8.69934867]
[1672895495377,0.00204335,1254.1,1254.0,7.50354724]
[1672895497381,0.00204335,1254.1,1254.0,8.69949831]
[1672895497695,3.58595729,1254.1,1254.0,8.69949831]
[1672895499796,3.58595729,1254.1,1254.0,5.49169831]
[1672895500108,3.58595729,1254.1,1254.0,8.69949831]
[1672895500949,3.58595729,1254.1,1254.0,5.49169831]
[1672895501259,3.58595729,1254.1,1254.0,8.69949831]
[1672895501687,3.58595729,1254.1,1254.0,5.49169831]
[1672895501897,3.58595729,1254.1,1254.0,8.69949831]
[1672895504313,0.00204335,1254.1,1254.0,8.69949831]
[1672895504524,0.00204335,1254.1,1254.0,8.69951445]
[1672895504736,0.00204335,1254.1,1254.0,7.50354724]
[1672895505997,0.00204335,1254.1,1254.0,4.29574724]
[1672895506208,0.00204335,1254.1,1254.0,7.50354724]
[1672895509579,0.00204335,1254.1,1254.0,4.29574724]
[1672895509779,0.00204335,1254.1,1254.0,7.50354724]
[1672895512412,0.00204335,1254.1,1254.0,8.6995494]
[1672895512623,3.58595729,1254.1,1254.0,8.69956961]
[1672895512942,3.58595729,1254.1,1254.0,6.19956961]
[1672895513461,0.00204335,1254.1,1254.0,6.19960409]
[1672895513666,3.58595729,1254.1,1254.0,6.19959856]
[1672895513878,0.00204335,1254.1,1254.0,5.00354724]
[1672895514088,3.58595729,1254.1,1254.0,6.19960355]
[1672895515139,3.58595729,1254.1,1254.0,5.00354724]
[1672895516510,0.00204335,1254.1,1254.0,5.00354724]
[1672895517246,3.58595729,1254.1,1254.0,5.00354724]
[1672895517773,3.58595729,1254.1,1254.0,1.79574724]
[1672895517975,3.58595729,1254.1,1254.0,5.00354724]
[1672895524499,3.58595729,1254.1,1254.0,1.79574724]
[1672895525231,3.58595729,1254.1,1254.0,5.00354724]
[1672895525442,3.58595729,1254.1,1254.0,6.19969864]
[1672895525863,3.58595729,1254.1,1254.0,2.99189864]
[1672895526079,3.58595729,1254.1,1254.0,6.19969864]
[1672895526922,3.58595729,1254.1,1254.0,2.99189864]
[1672895527126,3.58595729,1254.1,1254.0,5.00354724]
[1672895528281,0.00204335,1254.1,1254.0,7.50354724]
[1672895529864,7.76781651,1254.2,1254.0,7.50354724]
[1672895530073,10.26781651,1254.2,1254.1,4.40376482]
[1672895530804,7.76781651,1254.2,1254.1,4.40376482]
[1672895531435,3.58391394,1254.2,1254.1,6.19951206]
[1672895532805,3.58391394,1254.2,1254.1,4.40376482]
[1672895536791,6.08391394,1254.2,1254.1,4.40376482]
[1672895537003,3.58391394,1254.2,1254.1,4.40376482]
[1672895538579,6.08391394,1254.2,1254.1,4.40376482]
[1672895539104,3.58391394,1254.2,1254.1,4.40376482]
[1672895540477,6.08391394,1254.2,1254.1,4.40376482]
[1672895541322,3.58391394,1254.2,1254.1,4.40376482]
[1672895541637,6.08391394,1254.2,1254.1,4.40376482]
[1672895541948,3.58391394,1254.2,1254.1,4.40376482]
[1672895542356,6.08391394,1254.2,1254.1,4.40376482]
[1672895543732,3.58391394,1254.2,1254.1,1.19596482]
[1672895545834,6.08391394,1254.2,1254.1,1.19596482]
[1672895546255,3.58391394,1254.2,1254.1,1.19596482]
[1672895547201,3.58391394,1254.2,1254.1,4.40376482]
[1672895548671,3.58391394,1254.2,1254.1,1.19596482]
[1672895548878,3.58391394,1254.2,1254.1,4.40376482]
[1672895549829,3.58391394,1254.2,1254.1,1.19596482]
[1672895550039,3.58391394,1254.2,1254.1,4.40376482]
[1672895550767,3.58391394,1254.2,1254.1,1.19596482]
[1672895550979,3.58391394,1254.2,1254.1,4.40376482]
[1672895553716,6.08391394,1254.2,1254.1,3.2078]
[1672895554240,10.26781651,1254.2,1254.1,3.2078]
[1672895554558,10.26781651,1254.2,1254.0,5.49171206]
[1672895554872,7.76781651,1254.2,1254.0,8.69951206]
[1672895555708,3.58391394,1254.2,1254.1,1.19596482]
[1672895555924,3.58391394,1254.2,1254.1,2.69596482]
[1672895560024,3.58391394,1254.2,1254.1,1.19596482]
[1672895561184,3.58391394,1254.2,1254.1,1.18800829]
[1672895564545,3.58391394,1254.2,1254.1,2.68800829]
[1672895564747,3.58391394,1254.2,1254.1,4.48375553]
[1672895564958,4.18390257,1254.3,1254.1,3.29574724]
[1672895564959,10.26781651,1254.3,1254.1,3.29574724]
[1672895565271,10.26781651,1254.3,1254.2,3.2078]
[1672895565485,6.08391394,1254.3,1254.2,3.2078]
[1672895566122,10.26781651,1254.3,1254.2,3.2078]
[1672895568856,7.76781651,1254.3,1254.2,3.2078]
[1672895569064,7.77100386,1254.3,1254.2,3.2078]
[1672895569281,10.27100386,1254.3,1254.2,3.2078]
[1672895570743,7.77100386,1254.3,1254.2,3.2078]
[1672895571064,10.27100386,1254.3,1254.2,3.2078]
[1672895571693,10.27100386,1254.3,1254.1,6.50354724]
[1672895572010,10.27100386,1254.3,1254.1,3.29574724]
[1672895572321,10.27100386,1254.3,1254.1,6.50354724]
[1672895572532,3.58710129,1254.3,1254.1,6.50354724]
[1672895573370,3.58710129,1254.3,1254.1,8.89435241]
[1672895573905,3.58710129,1254.3,1254.1,6.50354724]
[1672895577994,3.58710129,1254.3,1254.2,3.2078]
[1672895582838,3.58710129,1254.3,1254.1,6.50354724]
[1672895588934,3.58710129,1254.3,1254.2,3.2078]
[1672895591875,10.27100386,1254.4,1254.2,3.2078]
[1672895592195,7.77100386,1254.4,1254.2,3.2078]
[1672895592717,10.27100386,1254.4,1254.2,3.2078]
[1672895593771,7.77100386,1254.4,1254.2,3.2078]
[1672895593983,3.58710129,1254.4,1254.2,3.2078]
[1672895594401,6.08710129,1254.4,1254.2,3.2078]
[1672895594720,3.58710129,1254.4,1254.2,3.2078]
[1672895595453,6.08710129,1254.4,1254.2,3.2078]
[1672895595874,6.08710129,1254.4,1254.1,13.65955241]
[1672895596084,6.08710129,1254.4,1254.2,3.2078]
[1672895596290,6.08710129,1254.4,1254.3,2.5]
[1672895596923,3.58710129,1254.4,1254.3,2.5]
[1672895597970,6.08710129,1254.4,1254.2,5.7078]
[1672895598390,2.5,1254.3,1254.2,5.7078]
[1672895598603,6.08710129,1254.3,1254.2,5.7078]
[1672895600297,6.08710129,1254.3,1254.2,2.5]
[1672895604184,6.08710129,1254.3,1254.1,11.26874724]
[1672895604396,6.08710129,1254.3,1254.1,14.47654724]
[1672895604605,3.58710129,1254.3,1254.2,2.5]
[1672895605968,3.58710129,1254.3,1254.2,5.7078]
[1672895607649,3.58710129,1254.3,1254.2,3.2078]
[1672895607860,6.08710129,1254.3,1254.1,1.5]
[1672895608073,10.27100386,1254.3,1254.1,1.5]
[1672895608273,3.58710129,1254.2,1254.1,1.5]
[1672895608484,5.58710129,1254.2,1254.1,1.5]
[1672895611437,3.58710129,1254.2,1254.1,1.5]
[1672895613861,10.27100386,1254.3,1254.1,1.5]
[1672895614701,3.58710129,1254.2,1254.1,1.5]
[1672895614904,5.58710129,1254.2,1254.1,1.5]
[1672895616377,2.0,1254.2,1254.0,15.47654724]
[1672895617958,2.0,1254.2,1254.0,12.26874724]
[1672895618168,2.0,1254.2,1254.0,15.47654724]
[1672895618379,10.27100386,1254.3,1254.0,15.47654724]
[1672895619008,6.08710129,1254.3,1254.0,17.86735241]
[1672895619634,6.08710129,1254.3,1254.0,14.65955241]
[1672895619842,6.08710129,1254.3,1254.0,17.86735241]
[1672895620685,6.08710129,1254.3,1254.0,14.65955241]
[1672895620898,6.08710129,1254.3,1254.0,17.86735241]
[1672895622998,6.08710129,1254.3,1254.1,1.79574724]
[1672895623210,6.08710129,1254.3,1254.2,2.5]
[1672895623836,3.58710129,1254.3,1254.2,2.5]
[1672895630567,3.58710129,1254.3,1254.2,5.7078]
[1672895631511,3.58710129,1254.3,1254.2,2.5]
[1672895631929,3.58710129,1254.3,1254.2,3.2078]
[1672895634664,3.58710129,1254.3,1254.1,5.00354724]
[1672895636453,3.58710129,1254.3,1254.2,2.5]
[1672895638238,3.58710129,1254.3,1254.1,5.00354724]
[1672895638451,6.08710129,1254.3,1254.1,5.00354724]
[1672895645069,3.58710129,1254.3,1254.1,5.00354724]
[1672895645482,3.58710129,1254.3,1254.2,2.5]
[1672895647907,3.58710129,1254.3,1254.1,5.00354724]
[1672895648119,3.58710129,1254.3,1254.2,2.5]
[1672895650637,3.58710129,1254.3,1254.1,5.00354724]
[1672895652745,6.08710129,1254.3,1254.1,5.00354724]
[1672895652956,6.08710129,1254.3,1254.1,1.79574724]
[1672895653159,6.08710129,1254.3,1254.1,5.00354724]
[1672895654216,3.58710129,1254.3,1254.1,5.00354724]
[1672895655056,3.58710129,1254.3,1254.1,1.79574724]
[1672895655261,3.58710129,1254.3,1254.1,5.00354724]
[1672895655677,3.58710129,1254.3,1254.1,1.79574724]
[1672895656104,3.58710129,1254.3,1254.1,5.00354724]
[1672895657051,3.58710129,1254.3,1254.2,2.5]
[1672895657264,7.77100386,1254.3,1254.2,2.5]
[1672895658206,3.58710129,1254.3,1254.2,10.473]
[1672895658524,0.002,1254.5,1254.3,0.00669121]
[1672895658737,2.502,1254.5,1254.4,3.2078]
[1672895658952,3.58910129,1254.5,1254.4,2.5]
[1672895659360,6.08910129,1254.5,1254.3,0.00669121]
[1672895659578,6.08910129,1254.5,1254.4,2.5]
[1672895659894,3.58910129,1254.5,1254.4,2.5]
[1672895660315,6.08910129,1254.5,1254.4,2.5]
[1672895660528,6.08910129,1254.5,1254.3,0.00669121]
[1672895660735,2.5,1254.4,1254.3,0.00669121]
[1672895663146,6.08710129,1254.4,1254.3,0.00669121]
[1672895663783,3.58710129,1254.4,1254.3,0.00669121]
[1672895664099,0.002,1254.5,1254.3,9.76542678]
[1672895664308,0.002,1254.5,1254.4,5.7078]
[1672895671352,0.002,1254.5,1254.4,13.6808]
[1672895672512,0.002,1254.5,1254.4,5.7078]
[1672895674088,0.002,1254.5,1254.4,2.5]
[1672895687540,3.58910129,1254.5,1254.3,5.71018858]
[1672895689652,0.002,1254.5,1254.3,6.90204054]
[1672895691011,0.002,1254.5,1254.3,3.69424054]
[1672895691222,0.002,1254.5,1254.3,6.90204054]
[1672895692483,3.58910129,1254.5,1254.3,6.90204054]
[1672895692694,0.002,1254.5,1254.3,6.90204054]
[1672895693104,3.58910129,1254.5,1254.3,6.90204054]
[1672895693637,0.002,1254.5,1254.3,6.90204054]
[1672895693848,3.58910129,1254.5,1254.3,6.90204054]
[1672895694048,0.002,1254.5,1254.3,6.90204054]
[1672895694475,3.58910129,1254.5,1254.3,8.69207874]
[1672895695112,3.58910129,1254.5,1254.3,6.90204054]
[1672895695320,3.58910129,1254.5,1254.3,8.69207874]
[1672895695527,3.58910129,1254.5,1254.3,6.90204054]
[1672895696579,3.58910129,1254.5,1254.3,8.69207874]
[1672895696900,6.08910129,1254.5,1254.3,8.69207874]
[1672895697112,6.08910129,1254.5,1254.3,6.90204054]
[1672895697424,6.08910129,1254.5,1254.3,8.69207874]
[1672895697631,3.58910129,1254.5,1254.3,8.69207874]
[1672895698266,3.58910129,1254.5,1254.4,1.19185196]
[1672895701314,3.58910129,1254.5,1254.3,16.66507874]
[1672895701525,3.58910129,1254.5,1254.4,1.19185196]
[1672895703517,0.002,1254.5,1254.4,1.19185196]
[1672895703828,3.58910129,1254.5,1254.4,1.19185196]
[1672895704041,0.002,1254.5,1254.4,1.19185196]
[1672895704360,3.58910129,1254.5,1254.4,1.19185196]
[1672895705733,3.58910129,1254.5,1254.4,4.39965196]
[1672895707521,0.002,1254.5,1254.4,4.39965196]
[1672895707724,0.002,1254.5,1254.4,6.18969016]
[1672895708356,0.002,1254.5,1254.4,4.39965196]
[1672895708676,0.002,1254.5,1254.4,6.18969016]
[1672895709090,0.002,1254.5,1254.4,4.39965196]
[1672895709300,0.002,1254.5,1254.4,6.18969016]
[1672895710456,0.002,1254.5,1254.4,4.39965196]
[1672895710671,0.002,1254.5,1254.4,6.18969016]
[1672895710883,0.002,1254.5,1254.4,4.39965196]
[1672895711930,3.58910129,1254.5,1254.4,4.39965196]
[1672895712351,3.58910129,1254.5,1254.4,12.37265196]